[Event "Israel-ch Semi-final 2022"]
[Site "Ramat Gan"]
[Date "2022.07.11"]
[Round "9.4"]
[White "Chernomordik, Pavel"]
[Black "Kinberg, Ofer"]
[Result "1-0"]
[ECO "C77"]
[WhiteElo "2178"]
[BlackElo "1935"]
[Annotator "ChessBase"]
[PlyCount "125"]
[EventDate "2022.05.09"]
[EventType "swiss"]
[EventCountry "ISR"]
[SourceTitle "playchess.com"]
[Source "ChessBase"]
[SourceQuality "1"]
[TimeControl "40/5400+30:1800+30"]

1. e4 {[%emt 0:00:02]} e5 {[%emt 0:04:46]} 2. Nf3 {[%emt 0:01:06]} Nc6 {[%emt 0:00:00]} 3. Bb5 {[%emt 0:00:02]} a6 {[%emt 0:00:04]} 4. Ba4 {[%emt 0:00:09]} Nf6 {[%emt 0:00:04]} 5. Qe2 {[%emt 0:00:05]} Be7 {[%emt 0:00:09]} 6. d4 {[%emt 0:01:14]} exd4 {[%emt 0:04:31]} 7. e5 {[%emt 0:05:58]} Nd5 {[%emt 0:01:05]} 8. Qe4 {[%emt 0:00:28]} Nb6 {[%emt 0:01:34]} 9. Bb3 {[%emt 0:00:32]} Na5 {[%emt 0:03:26]} 10. Qg4 {[%emt 0:02:39]} g6 {[%emt 0:10:37]} 11. Qxd4 {[%emt 0:05:10]} Nxb3 {[%emt 0:12:31]} 12. axb3 {[%emt 0:00:28]} f6 {[%emt 0:10:38]} 13. Bh6 {[%emt 0:05:05]} Kf7 {[%emt 0:00:26]} 14. O-O {[%emt 0:12:16]} Re8 {[%emt 0:07:43]} 15. Ng5+ {[%emt 0:04:24]} Kg8 {[%emt 0:01:24]} 16. Ne4 {[%emt 0:03:01]} d5 {[%emt 0:16:21]} 17. Nxf6+ {[%emt 0:01:51]} Bxf6 {[%emt 0:00:08]} 18. exf6 {[%emt 0:00:08]} Kf7 {[%emt 0:00:47]} 19. Bg5 {[%emt 0:12:48]} Bf5 {[%emt 0:09:15]} 20. Nd2 {[%emt 0:03:33]} c6 {[%emt 0:02:58]} 21. Rfe1 {[%emt 0:07:03]} Nd7 {[%emt 0:03:48]} 22. c4 {[%emt 0:04:39]} h6 {[%emt 0:00:43]} 23. Rxe8 {[%emt 0:05:44]} Qxe8 {[%emt 0:00:12]} 24. Bxh6 {[%emt 0:00:42]} Qe5 {[%emt 0:02:52]} 25. Qxe5 {[%emt 0:12:26]} Nxe5 {[%emt 0:00:02]} 26. Bg5 {[%emt 0:00:17]} Ng4 {[%emt 0:01:16]} 27. cxd5 {[%emt 0:06:10]} cxd5 {[%emt 0:00:00]} 28. f3 {[%emt 0:00:18]} Nxf6 {[%emt 0:00:10]} 29. g4 {[%emt 0:00:08]} Bd7 {[%emt 0:02:44]} 30. Rc1 {[%emt 0:00:20]} Rc8 {[%emt 0:00:57]} 31. Rxc8 {[%emt 0:00:13]} Bxc8 {[%emt 0:04:49]} 32. Kf2 {[%emt 0:00:26]} Nd7 {[%emt 0:00:00]} 33. Be3 {[%emt 0:02:15]} Ne5 {[%emt 0:00:00]} 34. Bd4 {[%emt 0:00:25]} Nc6 {[%emt 0:00:00]} 35. Ke3 {[%emt 0:00:14]} g5 {[%emt 0:00:00]} 36. h3 {[%emt 0:01:44]} Ke6 {[%emt 0:00:00]} 37. Nf1 {[%emt 0:00:34]} Bd7 {[%emt 0:00:00]} 38. Bc3 {[%emt 0:00:38]} Be8 {[%emt 0:00:00]} 39. Ng3 {[%emt 0:00:50]} Bg6 {[%emt 0:00:00]} 40. Ne2 {[%emt 0:01:25]} Bc2 {[%emt 0:02:14]} 41. b4 {[%emt 0:03:50]} Bd1 {[%emt 0:06:55]} 42. Kd2 {[%emt 0:08:19]} Bxe2 {[%emt 0:07:05]} 43. Kxe2 {[%emt 0:00:16]} Ne5 {[%emt 0:00:00]} 44. Bd2 {[%emt 0:03:07]} Kf6 {[%emt 0:01:42]} 45. f4 {[%emt 0:02:47]} gxf4 {[%emt 0:00:04]} 46. Bxf4 {[%emt 0:00:02]} Nc6 {[%emt 0:02:03]} 47. Bd2 {[%emt 0:00:45]} Ke5 {[%emt 0:00:03]} 48. Kd3 {[%emt 0:01:07]} b5 {[%emt 0:00:41]} 49. h4 {[%emt 0:00:23]} d4 {[%emt 0:00:04]} 50. h5 {[%emt 0:00:45]} Kd5 {[%emt 0:00:36]} 51. h6 {[%emt 0:02:01]} Ne5+ {[%emt 0:00:12]} 52. Ke2 {[%emt 0:00:05]} Kc4 {[%emt 0:08:25]} 53. h7 {[%emt 0:00:53]} Ng6 {[%emt 0:00:35]} 54. Bg5 {[%emt 0:00:42]} Kxb4 {[%emt 0:01:55]} 55. Bf6 {[%emt 0:00:29]} Kc4 {[%emt 0:01:20]} 56. h8=Q {[%emt 0:00:52]} Nxh8 {[%emt 0:00:05]} 57. Bxh8 {[%emt 0:00:07]} a5 {[%emt 0:00:27]} 58. g5 {[%emt 0:00:13]} Kd5 {[%emt 0:00:38]} 59. Bxd4 {[%emt 0:00:40]} b4 {[%emt 0:02:09]} 60. Kd3 {[%emt 0:01:08]} a4 {[%emt 0:00:13]} 61. g6 {[%emt 0:00:23]} Ke6 {[%emt 0:00:29]} 62. Kc4 {[%emt 0:00:36]} a3 {[%emt 0:00:20]} 63. b3 {[%emt 0:00:20]} 1-0

[Event "Israel-ch Semi-final 2022"]
[Site "Ramat Gan"]
[Date "2022.07.11"]
[Round "9.5"]
[White "Stolyarsky, Yegor"]
[Black "Rozen, Guy"]
[Result "0-1"]
[ECO "A87"]
[WhiteElo "2174"]
[BlackElo "1967"]
[Annotator "ChessBase"]
[PlyCount "96"]
[EventDate "2022.05.09"]
[EventType "swiss"]
[EventCountry "ISR"]
[SourceTitle "playchess.com"]
[Source "ChessBase"]
[SourceQuality "1"]
[TimeControl "40/5400+30:1800+30"]

1. d4 {[%emt 0:00:11]} f5 {[%emt 0:00:33]} 2. g3 {[%emt 0:00:23]} Nf6 {[%emt 0:00:10]} 3. Bg2 {[%emt 0:00:37]} g6 {[%emt 0:00:10]} 4. Nf3 {[%emt 0:00:15]} Bg7 {[%emt 0:00:04]} 5. O-O {[%emt 0:01:31]} O-O {[%emt 0:00:03]} 6. c4 {[%emt 0:00:15]} Ne4 {[%emt 0:02:42]} 7. Nbd2 {[%emt 0:02:37]} c5 {[%emt 0:01:45]} 8. e3 {[%emt 0:01:13]} Nc6 {[%emt 0:04:21]} 9. d5 {[%emt 0:02:23]} Nxd2 {[%emt 0:00:14]} 10. Bxd2 {[%emt 0:02:31]} Ne5 {[%emt 0:00:02]} 11. Nxe5 {[%emt 0:00:40]} Bxe5 {[%emt 0:00:02]} 12. Qc2 {[%emt 0:00:57]} Rb8 {[%emt 0:09:56]} 13. Bc3 {[%emt 0:00:56]} Qc7 {[%emt 0:01:01]} 14. f4 {[%emt 0:01:49]} Bxc3 {[%emt 0:03:12]} 15. Qxc3 {[%emt 0:00:08]} b5 {[%emt 0:00:07]} 16. cxb5 {[%emt 0:00:47]} a6 {[%emt 0:01:06]} 17. b4 {[%emt 0:12:18]} Rxb5 {[%emt 0:08:26]} 18. Rfc1 {[%emt 0:00:16]} c4 {[%emt 0:00:25]} 19. a4 {[%emt 0:05:15]} Rb8 {[%emt 0:00:37]} 20. Rab1 {[%emt 0:09:33]} Qa7 {[%emt 0:09:55]} 21. Kf2 {[%emt 0:03:27]} d6 {[%emt 0:01:53]} 22. Qxc4 {[%emt 0:04:15]} Bd7 {[%emt 0:01:44]} 23. Bf1 {[%emt 0:03:41]} Rfc8 {[%emt 0:11:32]} 24. Qxa6 {[%emt 0:00:19]} Qxa6 {[%emt 0:00:06]} 25. Bxa6 {[%emt 0:00:04]} Rxc1 {[%emt 0:00:04]} 26. Rxc1 {[%emt 0:00:05]} Rxb4 {[%emt 0:00:04]} 27. a5 {[%emt 0:01:27]} Ra4 {[%emt 0:02:56]} 28. Bc8 {[%emt 0:02:19]} Bb5 {[%emt 0:00:52]} 29. Be6+ {[%emt 0:01:38]} Kg7 {[%emt 0:00:27]} 30. Rc7 {[%emt 0:03:00]} Kf6 {[%emt 0:01:49]} 31. Rc8 {[%emt 0:01:02]} Kg7 {[%emt 0:03:12]} 32. Rg8+ {[%emt 0:01:17]} Kh6 {[%emt 0:00:02]} 33. Ra8 {[%emt 0:01:18]} Ra2+ {[%emt 0:06:47]} 34. Ke1 {[%emt 0:00:51]} Rxh2 {[%emt 0:01:24]} 35. a6 {[%emt 0:02:24]} Ra2 {[%emt 0:09:37]} 36. Bc8 {[%emt 0:05:38]} Kh5 {[%emt 0:04:51]} 37. a7 {[%emt 0:01:31]} Bd3 {[%emt 0:00:36]} 38. Be6 {[%emt 0:03:59]} Kg4 {[%emt 0:03:47]} 39. Rh8 {[%emt 0:00:52]} Rxa7 {[%emt 0:00:06]} 40. Rxh7 {[%emt 0:00:10]} Kxg3 {[%emt 0:03:35]} 41. Rg7 {[%emt 0:30:08]} Kf3 {[%emt 0:40:45]} 42. Kd2 {[%emt 0:03:56]} Be4 43. Rh7 {[%emt 0:24:04]} Ra2+ {[%emt 0:00:00]} 44. Kc3 Kxe3 {[%emt 0:00:00]} 45. Rxe7 {[%emt 0:00:00]} Kxf4 {[%emt 0:00:00]} 46. Kc4 {[%emt 0:00:00]} g5 {[%emt 0:00:00]} 47. Kb5 {[%emt 0:00:00]} g4 {[%emt 0:00:00]} 48. Kc6 {[%emt 0:00:00]} g3 {[%emt 0:00:00]} 0-1

[Event "Israel-ch Semi-final 2022"]
[Site "Ramat Gan"]
[Date "2022.07.11"]
[Round "9.6"]
[White "Flaum, Mark"]
[Black "Aronin, Pavel"]
[Result "1-0"]
[ECO "B31"]
[WhiteElo "1915"]
[BlackElo "1993"]
[Annotator "ChessBase"]
[PlyCount "89"]
[EventDate "2022.05.09"]
[EventType "swiss"]
[EventCountry "ISR"]
[SourceTitle "playchess.com"]
[Source "ChessBase"]
[SourceQuality "1"]
[TimeControl "40/5400+30:1800+30"]

1. e4 {[%emt 0:00:02]} c5 {[%emt 0:00:30]} 2. Nf3 {[%emt 0:00:03]} Nc6 {[%emt 0:00:05]} 3. Bb5 {[%emt 0:00:05]} g6 {[%emt 0:00:05]} 4. Bxc6 {[%emt 0:00:05]} bxc6 {[%emt 0:00:30]} 5. O-O {[%emt 0:00:30]} Bg7 {[%emt 0:00:30]} 6. Re1 {[%emt 0:00:30]} Nh6 {[%emt 0:00:30]} 7. c3 {[%emt 0:00:30]} O-O {[%emt 0:00:30]} 8. d4 {[%emt 0:00:30]} Qb6 {[%emt 0:00:30]} 9. Qc2 {[%emt 0:00:30]} cxd4 {[%emt 0:00:30]} 10. cxd4 {[%emt 0:00:30]} d6 {[%emt 0:00:30]} 11. h3 {[%emt 0:00:30]} f6 {[%emt 0:12:53]} 12. Nc3 {[%emt 0:07:51]} Nf7 {[%emt 0:00:30]} 13. Be3 {[%emt 0:00:30]} Qa6 {[%emt 0:00:30]} 14. Rac1 {[%emt 0:00:30]} Bd7 {[%emt 0:00:30]} 15. b3 {[%emt 0:00:30]} Rfe8 {[%emt 0:00:30]} 16. Qd2 {[%emt 0:00:30]} Rad8 {[%emt 0:00:30]} 17. Qe2 Qxe2 {[%emt 0:27:43]} 18. Rxe2 {[%emt 0:23:50]} g5 {[%emt 0:03:44]} 19. Nd2 {[%emt 0:06:57]} Rc8 {[%emt 0:03:19]} 20. b4 {[%emt 0:04:19]} f5 {[%emt 0:05:08]} 21. f3 {[%emt 0:02:21]} h5 {[%emt 0:07:35]} 22. Nb3 {[%emt 0:01:26]} g4 {[%emt 0:01:12]} 23. hxg4 {[%emt 0:00:46]} hxg4 {[%emt 0:00:08]} 24. Rec2 {[%emt 0:03:22]} e5 {[%emt 0:01:47]} 25. d5 {[%emt 0:02:53]} gxf3 {[%emt 0:06:36]} 26. gxf3 {[%emt 0:00:54]} Rb8 {[%emt 0:01:28]} 27. dxc6 {[%emt 0:02:36]} Bxc6 {[%emt 0:00:11]} 28. Na5 {[%emt 0:01:52]} Ba8 {[%emt 0:04:12]} 29. b5 {[%emt 0:06:07]} Bh6 {[%emt 0:07:35]} 30. Bxh6 {[%emt 0:02:11]} Nxh6 {[%emt 0:00:02]} 31. Nc6 {[%emt 0:01:46]} Bxc6 {[%emt 0:01:17]} 32. bxc6 {[%emt 0:00:02]} Rec8 {[%emt 0:00:42]} 33. Nd5 {[%emt 0:00:07]} Kf7 {[%emt 0:00:46]} 34. Rh2 {[%emt 0:07:42]} Kg7 {[%emt 0:03:17]} 35. Kh1 {[%emt 0:00:20]} Nf7 {[%emt 0:00:13]} 36. Ne7 {[%emt 0:00:14]} Rc7 {[%emt 0:00:37]} 37. Nxf5+ {[%emt 0:00:35]} Kf6 {[%emt 0:00:12]} 38. Ne3 {[%emt 0:02:05]} Rcc8 {[%emt 0:00:52]} 39. Nd5+ {[%emt 0:01:12]} Ke6 {[%emt 0:01:33]} 40. Rg2 {[%emt 0:07:29]} Rh8+ {[%emt 0:00:54]} 41. Kg1 {[%emt 0:30:19]} Rhg8 {[%emt 0:31:06]} 42. c7 {[%emt 0:02:53]} Rxg2+ {[%emt 0:01:13]} 43. Kxg2 {[%emt 0:00:04]} Rc8 {[%emt 0:01:47]} 44. Rb1 {[%emt 0:00:24]} Kd7 {[%emt 0:00:48]} 45. Rb7 {[%emt 0:00:43]} 1-0

[Event "Israel-ch Semi-final 2022"]
[Site "Ramat Gan"]
[Date "2022.07.11"]
[Round "9.7"]
[White "Reprun, Nadejda"]
[Black "Horesh, Tal"]
[Result "1/2-1/2"]
[ECO "B41"]
[WhiteElo "1954"]
[BlackElo "1973"]
[Annotator "ChessBase"]
[PlyCount "61"]
[EventDate "2022.05.09"]
[EventType "swiss"]
[EventCountry "ISR"]
[SourceTitle "playchess.com"]
[Source "ChessBase"]
[SourceQuality "1"]
[TimeControl "40/5400+30:1800+30"]

1. e4 {[%emt 0:00:01]} c5 {[%emt 0:00:12]} 2. Nf3 {[%emt 0:00:06]} a6 {[%emt 0:00:28]} 3. c4 {[%emt 0:00:20]} Qc7 {[%emt 0:01:07]} 4. d4 {[%emt 0:00:34]} cxd4 {[%emt 0:00:19]} 5. Nxd4 {[%emt 0:00:12]} Nf6 {[%emt 0:00:37]} 6. Nc3 {[%emt 0:00:09]} e6 {[%emt 0:00:09]} 7. Be2 {[%emt 0:00:35]} b6 {[%emt 0:00:40]} 8. O-O {[%emt 0:10:51]} Bb7 {[%emt 0:00:49]} 9. Qd3 {[%emt 0:02:20]} d6 {[%emt 0:01:13]} 10. f4 {[%emt 0:10:57]} Nbd7 {[%emt 0:01:38]} 11. Nb3 {[%emt 0:00:42]} Be7 {[%emt 0:01:14]} 12. Be3 {[%emt 0:00:41]} Rc8 {[%emt 0:02:22]} 13. Rac1 {[%emt 0:01:28]} Qb8 {[%emt 0:02:13]} 14. Bf3 {[%emt 0:03:59]} Bd8 {[%emt 0:01:23]} 15. Rc2 {[%emt 0:18:48]} Bc7 {[%emt 0:01:51]} 16. g4 {[%emt 0:06:30]} h5 {[%emt 0:03:45]} 17. g5 {[%emt 0:02:07]} Ng4 {[%emt 0:00:19]} 18. Bc1 {[%emt 0:06:27]} d5 {[%emt 0:02:16]} 19. cxd5 {[%emt 0:01:47]} Bxf4 {[%emt 0:00:28]} 20. Bxf4 {[%emt 0:01:55]} Qxf4 {[%emt 0:00:02]} 21. Bxg4 {[%emt 0:00:31]} Qxg5 {[%emt 0:01:16]} 22. dxe6 {[%emt 0:05:56]} Qxg4+ {[%emt 0:02:57]} 23. Rg2 {[%emt 0:02:30]} Qxe6 {[%emt 0:00:08]} 24. Rxg7 {[%emt 0:01:42]} Ne5 {[%emt 0:01:14]} 25. Qg3 {[%emt 0:01:25]} Rc4 {[%emt 0:05:18]} 26. Rf5 {[%emt 0:07:57]} Nd7 {[%emt 0:08:32]} 27. Rfxf7 {[%emt 0:05:29]} Qxf7 {[%emt 0:01:51]} 28. Rxf7 {[%emt 0:00:06]} Kxf7 {[%emt 0:00:07]} 29. Qd6 {[%emt 0:02:00]} Rg8+ {[%emt 1:00:32]} 30. Kf1 {[%emt 0:07:25]} Nf6 31. Ke1 {[%emt 0:00:30]} 1/2-1/2